Cogmind - Beta 14 @@@ ROGUE MODE // 2024.10.06 @ 22:49:43 Player: Corvi Result: Destroyed by D-53 Grenadier with Mini Grenade Launcher Performance ------------- Evolutions (0) 0 Regions Visited (2) 400 Robots Destroyed (20) 100 Value Destroyed (443) 443 Prototype IDs (0) 0 Alien Tech Used (0) 0 Bonus (0) 0 TOTAL SCORE: 943 Bonus ------- None Cogmind --------- Core Integrity 0/250 Matter 275/300 Energy 99/100 System Corruption 0% Temperature Cool (0) Movement Core (50) Location -10/Mines Parts ------- > --- POWER (1) -------- (None) > --- PROPULSION (2) --- (None) > --- UTILITY (2) ------ (None) > --- WEAPON (2) ------- (None) > --- INVENTORY (5) ---- Small Storage Unit Large Battery (200) Light Assault Rifle Improved Light Cannon Hammer Peak State ------------ > --- POWER ------------ Ion Engine > --- PROPULSION ------- Light Treads Light Treads > --- UTILITY ---------- Large Storage Unit Visual Processing Unit > --- WEAPON ----------- Improved Light Cannon Improved Light Cannon > --- INVENTORY -------- Light Ion Engine Small Storage Unit Large Battery Hacking Suite Light Assault Rifle Improved Light Cannon Improved Light Cannon [Rating: 11] Favorites ----------- Power Ion Engine Engine Ion Engine Propulsion Light Treads Treads Light Treads Leg Aluminum Leg Utility High-capacity Storage Unit Device Improved Heat Sink Storage High-capacity Storage Unit Processor Visual Processing Unit Weapon Improved Light Cannon Energy Gun Particle Gun Ballistic Gun Light Assault Rifle Ballistic Cannon Improved Light Cannon Build | -11 -10 -10 ------- Run | Yrd Mat Min Slots Evolved . | . . . Power . | . . . Propulsion . | . . . Utility . | . . . Weapon . | . . . Parts Attached 30 | 6 24 . Power 5 | 1 4 . Engine 5 | 1 4 . Core . | . . . Reactor . | . . . Propulsion 8 | 2 6 . Treads 6 | 2 4 . Leg 2 | . 2 . Wheel . | . . . Hover . | . . . Flight . | . . . Utility 8 | 1 7 . Device 3 | . 3 . Storage 3 | 1 2 . Processor 2 | . 2 . Hackware . | . . . Protection . | . . . Artifact . | . . . Weapon 9 | 2 7 . Energy Gun 2 | . 2 . Energy Cannon . | . . . Ballistic Gun 4 | 2 2 . Ballistic Cannon 3 | . 3 . Launcher . | . . . Special Weapon . | . . . Impact Weapon . | . . . Slashing Weapon . | . . . Piercing Weapon . | . . . Special Melee Weapon . | . . . Unidentified Prototypes . | . . . Parts Lost 10 | . 5 5 Power 3 | . 2 1 Propulsion 4 | . 2 2 Utility 1 | . 1 . Weapon 2 | . . 2 Highest Loss Streak 5 | . 2 5 To Critical Strikes . | . . . Average Slot Usage (%) 97 | . 97 89 Engine 13 | . 13 11 Treads 23 | . 23 24 Leg 3 | . 4 . Device 7 | . 7 . Storage 13 | . 14 12 Processor 6 | . 5 12 Energy Gun 3 | . 4 . Ballistic Gun 11 | . 12 . Ballistic Cannon 12 | . 11 25 Peak Build Rating 11 | 6 11 10 Average Rating 8 | 4 9 8 On Entrance 5 | . 6 10 Naked Turns 23 | . . 23 Heaviest Build 53 | 10 53 53 Greatest Support 40 | 40 40 40 Greatest Overweight (x) 2 | . 2 1 Average Overweight (x) . | . . . Largest Inventory Capacity 20 | 8 20 20 Average Capacity 15 | 7 15 18 Most Carried 13 | 1 13 13 Average Carried 7 | . 6 12 Final Capacity 20 | 8 20 5 Final Carried 13 | 1 13 5 Class Distribution -------------------- 81% | Mutant 18% | Scavenger-Mutant Dominant Class ---------------- Mutant | -10/Materials Mutant | -10/Mines Resources | -11 -10 -10 ----------- Run | Yrd Mat Min Matter Collected 661 | 248 398 15 Remotely . | . . . Salvage Created 693 | . 679 14 Parts 48 | . 48 . Haulers Intercepted 1 | . 1 . Recyclers Shooed 2 | . 2 . Parts Field Recycled . | . . . Retrieved Matter . | . . . Parts Self-Destructed . | . . . Prevented . | . . . Kills | -11 -10 -10 ------- Run | Yrd Mat Min Combat Hostiles Destroyed 16 | . 15 1 Guns 14 | . 14 . Cannons 2 | . 1 1 Classes Destroyed 7 | . 6 1 Worker 1 | . 1 . Hauler 1 | . 1 . Recycler 2 | . 2 . Watcher 1 | . 1 . Swarmer 6 | . 6 . Grunt 9 | . 9 . Assembled 1 | . . 1 Best Kill Streak 4 | . 4 1 Combat Bots Only 4 | . 4 1 Max Kills in Single Turn 1 | . 1 1 Gunslinging . | . . . Exploded . | . . . Melee . | . . . Uniques/NPCs Destroyed . | . . . Combat | -11 -10 -10 -------- Run | Yrd Mat Min Hostile Shots Fired 135 | . 115 20 Missed 26 | . 24 2 Damage Taken 1679 | . 962 717 Core 270 | . 136 134 Absorbed by Shields . | . . . Regen/Repaired (Parts) 93 | . 93 . Core Remaining (%) 100 | 100 . . Volleys Fired 85 | . 77 8 Largest 2 | . 2 2 Hottest 85 | . 85 78 Shots Fired 163 | . 148 15 Gun 123 | . 123 . Cannon 40 | . 25 15 Launcher . | . . . Special . | . . . Kinetic 128 | . 113 15 Thermal 35 | . 35 . Explosive . | . . . Electromagnetic . | . . . Robot Hit Streak 13 | . 13 6 Robot Miss Streak 4 | . 4 2 Penetration Max . | . . . Secondary Targets 1 | . 1 . Max Gunslinging Chain 1 | . 1 . Shots Hit Robots 95 | . 86 9 Core Hits 39 | . 37 2 Critical Kills . | . . . Critical Parts Destroyed 1 | . 1 . Critical Strikes 3 | . 3 . Burn 1 | . 1 . Destroy 1 | . 1 . Blast 1 | . 1 . Melee Attacks . | . . . Impact . | . . . Slashing . | . . . Piercing . | . . . Sneak Attacks . | . . . Combat Hostiles . | . . . Follow-up Attacks . | . . . Damage Inflicted 1244 | . 1027 217 Guns 768 | . 768 . Cannons 453 | . 236 217 Explosions . | . . . Melee . | . . . Ramming 23 | . 23 . Kinetic 891 | . 674 217 Thermal 330 | . 330 . Explosive . | . . . Electromagnetic . | . . . Impact . | . . . Slashing . | . . . Piercing . | . . . Highest Corruption . | . . . Average Corruption . | . . . Corruption Purged . | . . . Corruption Blocked . | . . . Overload Shots . | . . . Overflow Damage 17 | . 17 . Projectiles 17 | . 17 . Explosions . | . . . Melee . | . . . Knockbacks 3 | . 1 2 Impact . | . . . Kinetic 2 | . 1 1 Secondary 1 | . . 1 Self-Inflicted Damage . | . . . Shots . | . . . Rammed . | . . . Targets Rammed 11 | . 11 . Kicked 11 | . 11 . Crushed . | . . . Highest Temperature 96 | . 96 18 Average Temperature 19 | . 20 9 Received Heat Transfer 390 | . 390 . Siege Activations . | . . . Robots Corrupted . | . . . Combat Hostiles . | . . . Parts Fried . | . . . Impact Corruptions . | . . . Robots Melted . | . . . Combat Hostiles . | . . . Parts Melted . | . . . Heat Transferred 839 | . 839 . Parts Sabotaged . | . . . Parts Stolen . | . . . Parts Stripped . | . . . Power Chain Reactions . | . . . Alert | -11 -10 -10 ------- Run | Yrd Mat Min Peak Influence 220 | . 220 55 Initial 55 | . . 55 Average 92 | . 101 49 Maximum Alert Level 1 | . 1 . Low Security (%) 97 | 100 96 100 Level 1 2 | . 3 . Level 2 . | . . . Level 3 . | . . . Level 4 . | . . . Level 5 . | . . . High Security . | . . . Max Security . | . . . Squads Dispatched 4 | . 4 . Investigation 3 | . 3 . Extermination . | . . . Reinforcement 1 | . 1 . Assault . | . . . Garrison . | . . . Intercept . | . . . Searches Triggered . | . . . Construction Impeded . | . . . Haulers Reinforced . | . . . Active Scanning Responses . | . . . Cargo Convoy Interrupts . | . . . Stealth | -11 -10 -10 --------- Run | Yrd Mat Min Distress Signals 1 | . 1 . Communications Jammed . | . . . Distress Signals . | . . . Times Spotted 42 | . 39 3 Peak Tracking Total 6 | . 6 2 Tactical Retreats 8 | . 8 . Traps | -11 -10 -10 ------- Run | Yrd Mat Min Traps Triggered 3 | . 3 . Indirectly . | . . . Trap Hack Attempts . | . . . Triggered . | . . . Disarmed . | . . . Reprogrammed . | . . . Reused . | . . . Traps Extracted . | . . . Installed . | . . . Triggered . | . . . Machines | -11 -10 -10 ---------- Run | Yrd Mat Min Machines Disabled 2 | . 2 . Max in Single Turn 1 | . 1 . Machines Repaired . | . . . Machines Dismantled . | . . . Machines Sabotaged . | . . . Overloaded Fab Kills . | . . . Hacking | -11 -10 -10 --------- Run | Yrd Mat Min Machines Accessed 9 | . 9 . Terminals 6 | . 6 . Fabricators . | . . . Repair Stations 1 | . 1 . Recycling Units 2 | . 2 . Scanalyzers . | . . . Garrison Access . | . . . Total Hacks 26 | . 26 . Successful 11 | . 11 . Failed 15 | . 15 . Catastrophic 3 | . 3 . Database Lockouts . | . . . Manual 10 | . 10 . Terminals 19 | . 19 . Fabricators . | . . . Repair Stations 3 | . 3 . Recycling Units 4 | . 4 . Scanalyzers . | . . . Garrison Access . | . . . Terminal Hacks 4 | . 4 . Robot Analysis 2 | . 2 . Alert Level 2 | . 2 . Fabricator Hacks . | . . . Repair Station Hacks 2 | . 2 . Scan Component 1 | . 1 . Repair 1 | . 1 . Recycling Unit Hacks 4 | . 4 . Report Inventory 2 | . 2 . Retrieve Components 2 | . 2 . Scanalyzer . | . . . Garrison Access Hacks . | . . . Unauthorized Hacks 1 | . 1 . Terminals 1 | . 1 . Operators 1 | . 1 . Fabricators . | . . . Repair Stations . | . . . Recycling Units . | . . . Scanalyzers . | . . . Garrison Access . | . . . Data Cores Recovered . | . . . Used . | . . . Hacking Detections 7 | . 7 . Full Trace Events 1 | . 1 . Feedback Events . | . . . Feedback Blocked . | . . . Robot Schematics Acquired . | . . . Robots Built . | . . . Authchips . | . . . Time . | . . . Total Robot Build Rating . | . . . Part Schematics Acquired . | . . . Parts Built . | . . . Authchips . | . . . Time . | . . . Total Part Build Rating . | . . . Parts Repaired 1 | . 1 . Time 26 | . 26 . Parts Recycled . | . . . Recycled Matter . | . . . Retrieved Matter . | . . . Retrieved Components 14 | . 14 . Parts Scanalyzed . | . . . Part Schematics Acquired . | . . . Parts Damaged . | . . . Bothacking | -11 -10 -10 ------------ Run | Yrd Mat Min Used RIF Installer . | . . . Robots Hacked . | . . . Non-combat . | . . . Combat . | . . . Robot Hacks Applied . | . . . Relay Couplers Released . | . . . Fabnet Peak Effective % . | . . . Robots Rewired . | . . . Allies Hacked . | . . . Hacks Repelled . | . . . Allies | -11 -10 -10 -------- Run | Yrd Mat Min Total Allies . | . . . Largest Group . | . . . Highest-Rated Group . | . . . Highest-Rated Ally . | . . . Total Orders . | . . . Ally Attacks . | . . . Total Damage . | . . . Kills . | . . . Allies Corrupted . | . . . Allies Melted . | . . . Intel | -11 -10 -10 ------- Run | Yrd Mat Min Robot Analysis Total 2 | . 2 . Derelict Logs Recovered . | . . . Drone Launches . | . . . Drone Recoveries . | . . . Exploration | -11 -10 -10 ------------- Run | Yrd Mat Min Turns Passed 2615 | 90 2271 254 Spaces Moved 1123 | 55 966 102 Core 34 | 6 . 28 Treads 952 | 49 829 74 Legs 137 | . 137 . Wheels . | . . . Hover . | . . . Flight . | . . . Fastest Speed 50 | 50 160 50 Average Speed 191 | 148 193 187 Slowest Speed 260 | 160 260 240 Overloaded Moves . | . . . Propulsion Burnouts . | . . . Robots Hopped . | . . . Cave-ins Triggered . | . . . Exploration Rate (%) 38 | 4 99 12 Regions Visited 2 Branch Regions 1 Pre-discovered Areas . | . . . Known Exits Taken . | . . . Unknown Exits Taken 2 | 1 1 . Scrap Searched . | . . . Spaces Dug . | . . . Terrain Destroyed 4 | . 4 . Melee . | . . . Projectile 4 | . 4 . AOE . | . . . Terrain Rammed . | . . . Walls Destroyed . | . . . Machines Disabled . | . . . Actions | -11 -10 -10 --------- Run | Yrd Mat Min Total 1430 | 61 1220 149 Wait 158 | . 119 39 Move 1121 | 54 965 102 Hop . | . . . Pick Up 13 | 1 12 . Fast Attach 25 | 6 19 . Attach 2 | . 2 . Detach 1 | . 1 . Swap 3 | . 3 . Drop 11 | . 11 . Fire 85 | . 77 8 Melee . | . . . Ram . | . . . Kick 11 | . 11 . Crush . | . . . Escape Stasis . | . . . Rewire . | . . . Trap . | . . . Miscellaneous . | . . . Route ------- -11/Scrapyard -10/Materials (discovered 6 exits: [*Mat x3] / [*Min x2] / [*Sub]) -10/Mines History --------- Turn | Location | Event 28 | -11/Scrapyard | Discovered new exit (range 16) 91 | -11/Scrapyard | Entered Materials 301 | -10/Materials | Build established: Mutant 472 | -10/Materials | Discovered new exit (range 15) 747 | -10/Materials | Discovered new exit (range 7) 984 | -10/Materials | Discovered new exit (range 13) 1064 | -10/Materials | Build established: Scavenger-Mutant 1131 | -10/Materials | Discovered new exit (range 11) 1192 | -10/Materials | Discovered new exit (range 7) 1219 | -10/Materials | Core integrity fell below 50% 1542 | -10/Materials | Build established: Mutant 1848 | -10/Materials | Repaired Lgt. Treads 2119 | -10/Materials | Discovered new exit (range 18) 2362 | -10/Materials | Entered Mines 2392 | -10/Mines | Assembled infested the area 2397 | -10/Mines | Assisted by a Guerilla fighting off Assembled 2590 | -10/Mines | Core integrity fell below 20% 2593 | -10/Mines | Released all parts (2) 2616 | -10/Mines | Destroyed by D-53 Grenadier with Mini Grenade Launcher Last Messages --------------- I've been tracking a group of Assembled to figure out where they're coming from, and they're closing on this area, come on!" 02490_ as-47028 destroyed. 02516_ Acquired 8 matter. 02568_ K-01 Serf collects debris. 02573_ Ion Engine destroyed. 02579_ The unstable cave ceiling collapses. 02579_ D-53 Grenadier knocked back. 02579_ K-01 Serf destroyed. 02580_ The unstable cave ceiling collapses. 02589_ Lgt. Treads destroyed. 02589_ Imp. Light Cannon destroyed. 02592_ The unstable cave ceiling collapses. 02593_ Imp. Light Cannon destroyed. 02593_ Released Hcp. Storage Unit. 02593_ Released Targeting Computer. 02595_ The unstable cave ceiling collapses. 02595_ Acquired 1 matter. 02596_ The unstable cave ceiling collapses. 02596_ Acquired 6 matter. Map ----- +----------------------------------------------------+ | ??????????????????????????????????????????? | | ??????????????????????????????????????????? | | ??????????????????????????????????????????? | | ??????????????????????????????????????????? | | ?????????????????????????? ????????????? | | ????????????????????????? "????????????? | | ????????????????????????? ????????????? | | ?????????????????????????#% ????????????? | | ?????????????????????????# ????????????? | | ?????????????????????????# % #???????????? | | ?????????????????????????# ????????????? | | ?????????????????????????? ????????????? | | ?????????????????????????? ????????????? | | ???????######????????????? %%%????????????? | | ???##### ##????????????# #??????#?????? | | ??## #????????????#% ##???? #?????? | | ??# #????????????# "???? #?????? | | ??# ##??????????###% ###? ???????? | | ??## #??????????## # = # ????????? | | ???#### #?????????## #?????????? | | ??????## ##????????# ##????????? | | ???????## ######???# ]!! #????????? | | ????????# ##??# |!! #?????????? | | ????????# """ #??## !*! #?????????? | | ????????# """ #### # #?????????? | | ????????# """d @ ##?????????? | | ????????## d ######## ###??????????? | | ?????????## ##??????######????????????? | | ??????????## #?????????????????????????? | | ???????????## ##?????????????????????????? | | ????????????####??????????????????????????? | | ??????????????????????????????????????????? | | | | | | | | | | | | | | | | | | | | | | | | | | | | | | | | | | | | | +----------------------------------------------------+ Best States ------------- Heat Dissipation 39 Energy Generation 10 Energy Capacity 250 Matter Stores 300 Matter Capacity 300 Sight Range 18 Terrain Scan Density 10 Evasion (%) 50 Targeting Accuracy 5 Recoil Reduction 2 Item Schematics ----------------- None Robot Schematics ------------------ None Fabricated ------------ Nothing Alien Tech Used ----------------- None Achievements -------------- None Challenges ------------ None Game ------ Seed AerolevDerelictFalx Manual? 0 Play Time 00:16:34 Cumulative 50.7 hours Start 2024.10.06 @ 22:34:49 End 2024.10.06 @ 22:49:43 Sessions 1 Manual Loads 0 Difficulty Rogue Special Mode None Game No. 65 Rogue 65 Adventurer 0 Explorer 0 Win Type - Total 0 Types 0/0/0/0/0/0/0/0/0 Lore% 35 Gallery% 41 Achievement% 36 Wizard Run 0 Options --------- Layout 0 ASCII 0 Keyboard 0 Movement Mouse Keybinds 0 Fullscreen 1 Font 18/SmallcapsGlow Map View 76x50 Zoom Use 0% Tactical HUD 1 Map Filters NONE Filters NONE Steam 0 RUN: 37bb5ecf-5eb2-4198-8cca-75af4304acab